Cogmind - Beta 16 @@@ ROGUE MODE // 2025.12.16 @ 14:25:45 Player: AngelSpirit Result: Destroyed by G-47 Trooper with Particle Gun Performance ------------- Evolutions (0) 0 Regions Visited (1) 200 Robots Destroyed (19) 95 Value Destroyed (388) 388 Prototype IDs (0) 0 Alien Tech Used (0) 0 Bonus (0) 0 TOTAL SCORE: 683 Bonus ------- None Cogmind --------- Core Integrity 0/250 Matter 233/300 Energy 100/100 System Corruption 0% Temperature Cool (53) Movement Rolling (115) Ox1 Location -10/Materials Parts ------- > --- POWER (1) -------- (None) > --- PROPULSION (2) --- Compact Wheel > --- UTILITY (2) ------ Large Storage Unit > --- WEAPON (2) ------- Assault Rifle Assault Rifle > --- INVENTORY (15) --- High-capacity Matter Pod (174) Assault Rifle Assault Rifle Assault Rifle Peak State ------------ > --- POWER ------------ Ion Engine > --- PROPULSION ------- Wheel Wheel > --- UTILITY ---------- Large Storage Unit Seismic Detector > --- WEAPON ----------- Medium Laser Light Cannon > --- INVENTORY -------- Light Ion Engine Compact Wheel Compact Wheel Compact Wheel High-capacity Matter Pod Assault Rifle Assault Rifle Assault Rifle Assault Rifle Assault Rifle [Rating: 8] Favorites ----------- Power Ion Engine Engine Ion Engine Propulsion Wheel Wheel Wheel Utility Seismic Detector Device Seismic Detector Storage Large Storage Unit Weapon Medium Laser Energy Gun Medium Laser Ballistic Gun Light Assault Rifle Ballistic Cannon Light Cannon Build | -11 -10 ------- Run | Yrd Mat Slots Evolved . | . . Power . | . . Propulsion . | . . Utility . | . . Weapon . | . . Parts Attached 18 | 6 12 Power 3 | 1 2 Engine 3 | 1 2 Core . | . . Reactor . | . . Propulsion 6 | 2 4 Treads . | . . Leg . | . . Wheel 6 | 2 4 Hover . | . . Flight . | . . Utility 4 | 1 3 Device 1 | . 1 Storage 3 | 1 2 Processor . | . . Hackware . | . . Protection . | . . Artifact . | . . Weapon 5 | 2 3 Energy Gun 1 | 1 . Energy Cannon . | . . Ballistic Gun 3 | 1 2 Ballistic Cannon 1 | . 1 Launcher . | . . Special Weapon . | . . Impact Weapon . | . . Slashing Weapon . | . . Piercing Weapon . | . . Special Melee Weapon . | . . Unidentified Prototypes . | . . Parts Lost 10 | . 10 Power 3 | . 3 Propulsion 4 | . 4 Utility 1 | . 1 Weapon 2 | . 2 Highest Loss Streak 8 | . 8 To Critical Strikes . | . . Average Backups 4 | . 4 Power 1 | . 1 Propulsion 1 | . 1 Utility . | . . Weapon . | . . Tool/Special . | . . Unused Backups 4 | . 4 Power . | . . Propulsion . | . . Utility 1 | . 1 Weapon 3 | . 3 Tool/Special . | . . Average Slot Usage (%) 97 | . 97 Engine 13 | . 13 Wheel 27 | . 27 Device 12 | . 12 Storage 14 | . 14 Energy Gun 13 | . 13 Ballistic Gun 9 | . 9 Ballistic Cannon 4 | . 4 Peak Build Rating 8 | 6 8 Average Rating 6 | 4 6 On Entrance 3 | . 6 Avg Prop Armor Cover (%) . | . . Naked Turns . | . . Heaviest Build 31 | 13 31 Greatest Support 32 | 20 32 Greatest Overweight (x) 3 | . 3 Average Overweight (x) . | . . Largest Inventory Capacity 15 | 8 15 Average Capacity 13 | 7 13 Most Carried 10 | 1 10 Average Carried 4 | . 4 Final Capacity 15 | 8 15 Final Carried 4 | 1 4 Class Distribution -------------------- 100% | Mutant Dominant Class ---------------- Mutant | -10/Materials Resources | -11 -10 ----------- Run | Yrd Mat Matter Collected 666 | 205 461 Remotely . | . . Salvage Created 650 | . 650 Parts 44 | . 44 Haulers Intercepted 2 | . 2 Recyclers Shooed 1 | . 1 Parts Field Recycled . | . . Retrieved Matter . | . . Parts Self-Destructed . | . . Prevented . | . . Parts Restored . | . . Kills | -11 -10 ------- Run | Yrd Mat Combat Hostiles Destroyed 11 | . 11 Guns 8 | . 8 Cannons 3 | . 3 Classes Destroyed 6 | . 6 Worker 2 | . 2 Hauler 2 | . 2 Recycler 2 | . 2 Watcher 2 | . 2 Swarmer 3 | . 3 Grunt 8 | . 8 Best Kill Streak 4 | . 4 Combat Bots Only 3 | . 3 Max Kills in Single Turn 1 | . 1 Gunslinging . | . . Exploded . | . . Melee . | . . Uniques/NPCs Destroyed . | . . Combat | -11 -10 -------- Run | Yrd Mat Hostile Shots Fired 91 | . 91 Missed 15 | . 15 Hits 76 | . 76 Projectile 76 | . 76 Critical Strikes 3 | . 3 Damage Taken 998 | . 998 Core 253 | . 253 Absorbed by Shields . | . . Core Remaining (%) 100 | 100 . Volleys Fired 87 | . 87 Largest 2 | . 2 Hottest 80 | . 80 Shots Fired 153 | . 153 Gun 122 | . 122 Cannon 31 | . 31 Launcher . | . . Special . | . . Kinetic 88 | . 88 Thermal 65 | . 65 Explosive . | . . Electromagnetic . | . . Robot Hit Streak 16 | . 16 Robot Miss Streak 7 | . 7 Penetration Max . | . . Secondary Targets . | . . Shots Hit Robots 85 | . 85 Core Hits 36 | . 36 Critical Kills . | . . Critical Parts Destroyed . | . . Critical Strikes 4 | . 4 Burn 4 | . 4 Melee Attacks . | . . Impact . | . . Slashing . | . . Piercing . | . . Sneak Attacks . | . . Combat Hostiles . | . . Follow-up Attacks . | . . Damage Inflicted 1144 | . 1144 Guns 859 | . 859 Cannons 285 | . 285 Explosions . | . . Melee . | . . Ramming . | . . Kinetic 625 | . 625 Thermal 519 | . 519 Explosive . | . . Electromagnetic . | . . Impact . | . . Slashing . | . . Piercing . | . . Highest Corruption . | . . Average Corruption . | . . Corruption Purged . | . . Corruption Blocked . | . . Overload Shots . | . . Overflow Damage . | . . Projectiles . | . . Explosions . | . . Melee . | . . Knockbacks 6 | . 6 Impact . | . . Kinetic 5 | . 5 Secondary 1 | . 1 Self-Inflicted Damage . | . . Shots . | . . Rammed . | . . Targets Rammed . | . . Kicked . | . . Crushed . | . . Highest Temperature 308 | . 308 Average Temperature 80 | . 80 Received Heat Transfer 585 | . 585 Effects 2 | . 2 Interference 2 | . 2 Siege Activations . | . . Martial Activations . | . . Shielding Activations . | . . Robots Disrupted . | . . Combat Hostiles . | . . Robots Corrupted . | . . Combat Hostiles . | . . Parts Fried . | . . Impact Corruptions . | . . Robots Melted . | . . Combat Hostiles . | . . Parts Melted 3 | . 3 Heat Transferred 1813 | . 1813 Parts Sabotaged . | . . Parts Stolen . | . . Parts Stripped . | . . Power Chain Reactions . | . . Alert | -11 -10 ------- Run | Yrd Mat Maximum Alert Level . | . . Low Security (%) 100 | 100 100 Level 1 . | . . Level 2 . | . . Level 3 . | . . Level 4 . | . . Level 5 . | . . High Security . | . . Max Security . | . . Peak Influence 67 | . 67 Initial . | . . Average 18 | . 19 Influence Increases 399 | . 399 Destroy 0b10 Robot/C 220 | . 220 Destroy 0b10 Robot/NC 40 | . 40 Destroy Leader 58 | . 58 Successful Hack 6 | . 6 Disable Machine 15 | . 15 Lose Combat Pursuer 60 | . 60 Influence Decreases 361 | . 361 Time Decay 270 | . 270 Lost Part 91 | . 91 Squads Dispatched 3 | . 3 Investigation 2 | . 2 Extermination . | . . Reinforcement 1 | . 1 Assault . | . . Garrison . | . . Intercept . | . . Searches Triggered . | . . Construction Impeded . | . . Haulers Reinforced . | . . Active Scanning Responses . | . . Cargo Convoy Interrupts . | . . Stealth | -11 -10 --------- Run | Yrd Mat Distress Signals . | . . Communications Jammed . | . . Distress Signals . | . . Times Spotted 23 | . 23 Peak Tracking Total 4 | . 4 Tactical Retreats 2 | . 2 Traps | -11 -10 ------- Run | Yrd Mat Traps Triggered 2 | . 2 Indirectly . | . . Trap Hack Attempts . | . . Triggered . | . . Disarmed . | . . Reprogrammed . | . . Reused . | . . Traps Extracted . | . . Installed . | . . Triggered . | . . Machines | -11 -10 ---------- Run | Yrd Mat Machines Disabled 1 | . 1 Max in Single Turn 1 | . 1 Machines Repaired . | . . Machines Dismantled . | . . Machines Sabotaged . | . . Overloaded Fab Kills . | . . Hacking | -11 -10 --------- Run | Yrd Mat Machines Accessed 5 | . 5 Terminals 4 | . 4 Fabricators . | . . Repair Stations . | . . Recycling Units 1 | . 1 Scanalyzers . | . . Garrison Access . | . . Total Hacks 14 | . 14 Successful 3 | . 3 Failed 11 | . 11 Catastrophic 4 | . 4 Database Lockouts . | . . Manual 8 | . 8 Terminals 13 | . 13 Fabricators . | . . Repair Stations . | . . Recycling Units 1 | . 1 Scanalyzers . | . . Garrison Access . | . . Terminal Hacks 2 | . 2 Robot Analysis 1 | . 1 Registered Prototypes 1 | . 1 Fabricator Hacks . | . . Repair Station Hacks . | . . Recycling Unit Hacks 1 | . 1 Retrieve Components 1 | . 1 Scanalyzer . | . . Garrison Access Hacks . | . . Unauthorized Hacks . | . . Terminals . | . . Fabricators . | . . Repair Stations . | . . Recycling Units . | . . Scanalyzers . | . . Garrison Access . | . . Data Cores Recovered . | . . Used . | . . Hacking Detections 4 | . 4 Full Trace Events 1 | . 1 Feedback Events . | . . Feedback Blocked . | . . Robot Schematics Acquired . | . . Robots Built . | . . Authchips . | . . Time . | . . Total Robot Build Rating . | . . Part Schematics Acquired . | . . Parts Built . | . . Authchips . | . . Time . | . . Total Part Build Rating . | . . Part Studies Acquired . | . . Parts Repaired . | . . Time . | . . Parts Recycled . | . . Recycled Matter . | . . Retrieved Matter . | . . Retrieved Components 1 | . 1 Parts Scanalyzed . | . . Part Schematics Acquired . | . . Parts Damaged . | . . Bothacking | -11 -10 ------------ Run | Yrd Mat Used RIF Installer . | . . Robots Hacked . | . . Non-combat . | . . Combat . | . . Robot Hacks Applied . | . . Relay Couplers Released . | . . Fabnet Peak Effective % . | . . Robots Rewired . | . . Allies Hacked . | . . Hacks Repelled . | . . Allies | -11 -10 -------- Run | Yrd Mat Total Allies . | . . Largest Group . | . . Highest-Rated Group . | . . Highest-Rated Ally . | . . Total Orders . | . . Ally Attacks . | . . Total Damage . | . . Kills . | . . Allies Corrupted . | . . Allies Melted . | . . Intel | -11 -10 ------- Run | Yrd Mat Active Infowar (turns) 778 | . 778 Seismic 778 | . 778 Robot Analysis Total 1 | . 1 Derelict Logs Recovered . | . . Drone Launches . | . . Drone Recoveries . | . . Exploration | -11 -10 ------------- Run | Yrd Mat Turns Passed 881 | 38 843 Spaces Moved 583 | 36 547 Core 2 | 2 . Treads . | . . Legs . | . . Wheels 581 | 34 547 Hover . | . . Flight . | . . Fastest Speed 50 | 50 80 Average Speed 92 | 78 92 Slowest Speed 125 | 80 125 Overloaded Moves . | . . Propulsion Burnouts . | . . Robots Hopped . | . . Potential Cave-ins . | . . Cave-ins Triggered . | . . Exploration Rate (%) 43 | 3 84 Regions Visited 1 Branch Regions . Pre-discovered Areas . | . . Known Exits Taken . | . . Unknown Exits Taken 1 | 1 . Scrap Searched . | . . Spaces Dug . | . . Terrain Destroyed . | . . Melee . | . . Projectile . | . . AOE . | . . Terrain Rammed . | . . Walls Destroyed . | . . Machines Disabled . | . . Actions | -11 -10 --------- Run | Yrd Mat Total 779 | 42 737 Wait 74 | . 74 Move 582 | 35 547 Hop . | . . Pick Up 13 | 1 12 Fast Attach 8 | 6 2 Attach 8 | . 8 Detach . | . . Swap 3 | . 3 Drop 4 | . 4 Fire 87 | . 87 Melee . | . . Ram . | . . Kick . | . . Crush . | . . Escape Stasis . | . . Rewire . | . . Trap . | . . Miscellaneous . | . . Route ------- -11/Scrapyard -10/Materials (discovered 3 exits: [*Mat] / [*Min x2]) History --------- Turn | Location | Event 25 | -11/Scrapyard | Discovered new exit (range 16) 39 | -11/Scrapyard | Entered Materials 177 | -10/Materials | Discovered new exit (range 15) 300 | -10/Materials | Build established: Mutant 435 | -10/Materials | Discovered new exit (range 8) 622 | -10/Materials | Core integrity fell below 50% 779 | -10/Materials | Discovered new exit (range 14) 873 | -10/Materials | Core integrity fell below 20% 882 | -10/Materials | Destroyed by G-47 Trooper with Particle Gun Last Messages --------------- 00830_ Ion Engine destroyed. 00831_ Lgt. Cannon destroyed. 00833_ Acquired 41 matter. 00833_ Critical hit (Burn: +37). 00835_ Acquired 4 matter. 00835_ K-01 Serf collects debris. 00842_ R-06 Scavenger collects Heat Sink. 00845_ K-01 Serf collects debris. 00845_ R-06 Scavenger collects Sml. Laser. 00847_ G-34 Mercenary destroyed. 00848_ K-01 Serf collects debris. 00848_ R-06 Scavenger collects Aluminum Leg. 00851_ Com. Wheel destroyed. 00859_ G-34 Mercenary destroyed. 00860_ K-01 Serf collects debris. 00864_ Med. Laser destroyed. 00865_ K-01 Serf collects debris. 00866_ Seismic Detector destroyed. 00874_ Lgt. Ion Engine destroyed. 00881_ G-47 Trooper destroyed. Map ----- +----------------------------------------------------+ | | | | | | | | | | | ??##############?????????????????????????????????? | | ??# !! #?????????????????????????????????? | | ??# !! #?????????????????????????????????? | | ??# !! #????##########???????????????????? | | ??# "T" #????# #???????????????????? | | ??# """ #????# """ #???????????????????? | | ??#######+########### """ #???????????????????? | | ?????# += """ #???????????????????? | | ?????# < # #???????????????????? | | ?????# # """ #???????????????????? | | ?????############ # """ |#???????????????????? | | ????????????????# # """ #???????????????????? | | ????????????????# # #???????? ??????????? | | ?????########???# #####+####??????? ???????? | | ?????# #???# % #????????? ???????? | | ?????# #???# = #????????? ""??????? | | ?????# """#???# !!*#?#####??? [ T" ?????? | | ?????# """#???#########k##?# #?? ""??????? | | ?????# """#???????????#r#??# #?? ???????? | | ###### ?????????????#u#??# #?? ????????? | | ###+###????????????#@#??# #?? ########?? | | # #????????????#g#??# #? # #?? | | # [##############g#??# #? # #?? | | + * =+ ##k#### #? # #?? | | # ### """ # ##+### # #?? | | # #?# """ # # ### | | ### ###?# """ + " # # | | #?# #???#""! # # ! + | | #+###### #???#"Y # #######+#### ] # | | #???#"" ## %##??????????# # | | ##### #???# ## #???????????# # | | #???# #???###+######## #???????????# # | | #???# #?????# #??????# #???????????# # | | #??##+#####?# #?????## ####????????# # | | #?? #?# #?##### """#????????#####+## | | #? #?# #?# # "#????????????# ?# | | #? #?#%#?# # !"#????????#####/?# | | # ### ### # < ""#????????# # | | # ## ## # !"#????????# # | | + ## ## # "#????????# + | | # + ## # """#????????# # | | # ## ## ## ###########?# # | | #?########## ####+## ##### #?# ?# | | #?########?# % ########## | | # ??# < + """ # | +----------------------------------------------------+ Best States ------------- Heat Dissipation 25 Energy Generation 10 Energy Capacity 250 Matter Stores 300 Matter Capacity 300 Sight Range 16 Terrain Scan Density 10 Evasion (%) 44 Item Schematics ----------------- None Robot Schematics ------------------ None Fabricated ------------ Nothing Repaired ---------- Nothing Studied --------- None Alien Tech Used ----------------- None Achievements -------------- None Challenges ------------ None Game ------ Seed EncryptedRelayTreads Manual? 0 Play Time 00:08:31 Cumulative 295.8 hours Start 2025.12.16 @ 14:17:58 End 2025.12.16 @ 14:25:45 Sessions 1 Manual Loads 0 Difficulty Rogue Special Mode None Game No. 105 Rogue 105 Adventurer 0 Explorer 0 Win Type - Total 2 Types 1/0/0/0/0/0/0/0/0/1 Lore% 73 Gallery% 68 Achievement% 57 Wizard Run 0 Options --------- Layout 1 ASCII 0 Keyboard 0 Movement Mouse Keybinds 0 Fullscreen 2 Font 32/SmallcapsGlow Map View 50x35 Zoom Use 0% Tactical HUD 1 Map Filters NONE Filters NONE Steam 1 RUN: 2f1627d8-c7ee-43bf-86b6-704c8ee6904d